Cogmind - Beta 15 @@@ ROGUE MODE // 2025.05.07 @ 22:45:22 Player: gallo Result: Self-destructed Performance ------------- Evolutions (1) 500 Regions Visited (4) 800 Robots Destroyed (35) 175 Value Destroyed (644) 644 Prototype IDs (0) 0 Alien Tech Used (0) 0 Bonus (-23) -23 TOTAL SCORE: 2096 Bonus ------- Friendly Fire -23 Cogmind --------- Core Integrity 165/400 Matter 206/300 Energy 100/100 System Corruption 0% Temperature Warm (139) Movement Rolling (90) Location -7/Zion Parts ------- > --- POWER (1) -------- (None) > --- PROPULSION (2) --- Wheel Compact Wheel > --- UTILITY (3) ------ Coolant Injector Small Storage Unit Hacking Suite > --- WEAPON (3) ------- Makeshift Laser Beam Cannon > --- INVENTORY (8) ---- Ion Engine Light Ion Engine Compact Wheel Improved Terrain Scanner Seismic Detector Heavy EM Pulse Gun Medium Laser Makeshift Laser Peak State ------------ > --- POWER ------------ Makeshift Power Source > --- PROPULSION ------- Wheel Compact Wheel > --- UTILITY ---------- Coolant Injector Small Storage Unit Hacking Suite > --- WEAPON ----------- Heavy EM Pulse Gun Makeshift Laser Beam Cannon > --- INVENTORY -------- Ion Engine Light Ion Engine Compact Wheel Improved Terrain Scanner Seismic Detector Medium Laser Makeshift Laser Grenade Launcher [Rating: 22] Favorites ----------- Power Light Ion Engine Engine Light Ion Engine Propulsion Wheel Wheel Wheel Utility Small Storage Unit Device Improved Terrain Scanner Storage Small Storage Unit Hackware Hacking Suite Weapon Assault Rifle Energy Gun Medium Laser Energy Cannon Beam Cannon Ballistic Gun Assault Rifle Launcher Grenade Launcher Build | -11 -10 -9 -9 -7 ------- Run | Yrd Mat Mat Min Zio Slots Evolved 2 | . . 2 . . Power . | . . . . . Propulsion . | . . . . . Utility 1 | . . 1 . . Weapon 1 | . . 1 . . Parts Attached 18 | 7 2 5 . 4 Power 3 | 1 . 1 . 1 Engine 3 | 1 . 1 . 1 Core . | . . . . . Reactor . | . . . . . Propulsion 2 | 2 . . . . Treads . | . . . . . Leg . | . . . . . Wheel 2 | 2 . . . . Hover . | . . . . . Flight . | . . . . . Utility 6 | 2 1 2 . 1 Device 3 | 1 . 1 . 1 Storage 2 | 1 1 . . . Processor . | . . . . . Hackware 1 | . . 1 . . Protection . | . . . . . Artifact . | . . . . . Weapon 7 | 2 1 2 . 2 Energy Gun 4 | 1 . 2 . 1 Energy Cannon 1 | . 1 . . . Ballistic Gun 1 | 1 . . . . Ballistic Cannon . | . . . . . Launcher 1 | . . . . 1 Special Weapon . | . . . . . Impact Weapon . | . . . . . Slashing Weapon . | . . . . . Piercing Weapon . | . . . . . Special Melee Weapon . | . . . . . Unidentified Prototypes . | . . . . . Corrupted Parts 1 | . . 1 . . System Corruption 1 | . . 1 . . Parts Lost 2 | . . . . 2 Power 1 | . . . . 1 Propulsion . | . . . . . Utility . | . . . . . Weapon 1 | . . . . 1 Highest Loss Streak 2 | . . . . 2 To Critical Strikes . | . . . . . Average Backups 6 | 1 6 7 8 7 Power 1 | . 1 1 1 1 Propulsion . | . 1 1 1 1 Utility 1 | . 1 1 2 2 Weapon 3 | . 2 3 4 3 Tool/Special . | . . . . . Unused Backups 8 | . 2 1 . 5 Power 1 | . . . . 1 Propulsion 1 | . . . . 1 Utility 2 | . 1 . . 1 Weapon 4 | . 1 1 . 2 Tool/Special . | . . . . . Average Slot Usage (%) 99 | . 100 96 100 99 Engine 12 | . 14 11 11 11 Wheel 24 | . 28 22 22 22 Device 12 | . 14 13 11 10 Storage 12 | . 14 11 11 11 Hackware 5 | . . 4 11 11 Energy Gun 16 | . 14 14 11 19 Energy Cannon 5 | . . 7 11 11 Ballistic Gun 8 | . 14 11 11 1 Peak Build Rating 22 | 9 9 13 13 22 Average Rating 12 | 5 9 12 13 17 On Entrance 8 | . 9 9 13 13 Naked Turns . | . . . . . Heaviest Build 88 | 13 88 18 17 18 Greatest Support 26 | 26 26 26 26 26 Greatest Overweight (x) 3 | 2 3 . . . Average Overweight (x) . | . . . . . Largest Inventory Capacity 25 | 8 25 8 8 8 Average Capacity 8 | 7 8 8 8 8 Most Carried 8 | 3 8 8 8 8 Average Carried 7 | 2 6 7 8 7 Final Capacity 8 | 8 8 8 8 8 Final Carried 8 | 3 8 8 8 8 Class Distribution -------------------- 45% | Mutant 44% | Gunner 10% | Skirmisher Dominant Class ---------------- Mutant | -10/Materials Skirmisher | -9/Materials Gunner | -9/Mines Gunner | -7/Zion Resources | -11 -10 -9 -9 -7 ----------- Run | Yrd Mat Mat Min Zio Matter Collected 444 | 221 115 54 . 54 Remotely . | . . . . . Salvage Created 729 | 137 157 257 . 178 Parts 60 | 4 30 16 . 10 Haulers Intercepted . | . . . . . Recyclers Shooed . | . . . . . Parts Field Recycled . | . . . . . Retrieved Matter . | . . . . . Parts Self-Destructed . | . . . . . Prevented . | . . . . . Kills | -11 -10 -9 -9 -7 ------- Run | Yrd Mat Mat Min Zio Combat Hostiles Destroyed 12 | . 4 7 . 1 Guns 5 | . 1 4 . . Cannons 3 | . . 3 . . AOE 4 | . 3 . . 1 Classes Destroyed 10 | 2 5 1 . 2 Worker 1 | . 1 . . . Builder 2 | . 2 . . . Tunneler 5 | 3 2 . . . Recycler 1 | 1 . . . . Operator 2 | . 1 1 . . Watcher 3 | . 1 2 . . Swarmer 3 | . . 3 . . Grunt 8 | . 4 4 . . Zionite 9 | . . . . 9 Butcher 1 | . . . . 1 Best Kill Streak 10 | 4 3 6 . 10 Combat Bots Only 3 | . 2 3 . 1 Max Kills in Single Turn 3 | 1 3 2 . 3 Gunslinging 1 | . . 1 . . Exploded 2 | . 2 . . 1 Melee . | . . . . . Uniques/NPCs Destroyed . | . . . . . Combat | -11 -10 -9 -9 -7 -------- Run | Yrd Mat Mat Min Zio Hostile Shots Fired 54 | . 2 10 . 42 Missed 20 | . 1 1 . 18 Hits 34 | . 1 9 . 24 Melee 6 | . . . . 6 Projectile 28 | . 1 9 . 18 Critical Strikes 1 | . . . . 1 Damage Taken 504 | . 11 76 . 417 Core 245 | . 10 . . 235 Absorbed by Shields . | . . . . . Core Remaining (%) 98 | 100 96 . . . Volleys Fired 42 | 9 10 13 . 10 Largest 3 | 2 2 3 . 3 Hottest 155 | 70 70 125 . 155 Shots Fired 94 | 18 20 29 . 27 Gun 75 | 18 20 23 . 14 Cannon 16 | . . 6 . 10 Launcher 3 | . . . . 3 Special . | . . . . . Kinetic 27 | 9 10 8 . . Thermal 52 | 9 10 13 . 20 Explosive 3 | . . . . 3 Electromagnetic 12 | . . 8 . 4 Robot Hit Streak 8 | 3 4 8 . 5 Robot Miss Streak 5 | 2 5 4 . 2 Penetration Max . | . . . . . Secondary Targets 2 | . . 2 . . Max Gunslinging Chain 1 | . . 1 . . Shots Hit Robots 45 | 10 8 17 . 10 Core Hits 40 | 5 10 11 . 14 Critical Kills 1 | . . 1 . . Critical Parts Destroyed 1 | . . 1 . . Critical Strikes 5 | . 1 4 . . Burn 2 | . 1 1 . . Destroy 2 | . . 2 . . Corrupt 1 | . . 1 . . Melee Attacks . | . . . . . Impact . | . . . . . Slashing . | . . . . . Piercing . | . . . . . Sneak Attacks . | . . . . . Combat Hostiles . | . . . . . Follow-up Attacks . | . . . . . Damage Inflicted 1884 | 127 903 243 . 611 Guns 528 | 127 98 190 . 113 Cannons 123 | . . 53 . 70 Explosions 1230 | . 802 . . 428 Melee . | . . . . . Ramming 3 | . 3 . . . Kinetic 149 | 50 47 52 . . Thermal 520 | 77 162 129 . 152 Explosive 1119 | . 691 . . 428 Electromagnetic 93 | . . 62 . 31 Impact . | . . . . . Slashing . | . . . . . Piercing . | . . . . . Highest Corruption 2 | . . 2 2 2 Average Corruption 1 | . . 1 2 2 Corruption Purged . | . . . . . Corruption Blocked . | . . . . . Effects 1 | . . . . 1 Matter Fused 1 | . . . . 1 Overload Shots . | . . . . . Overflow Damage 205 | . 205 . . . Projectiles . | . . . . . Explosions 205 | . 205 . . . Melee . | . . . . . Knockbacks . | . . . . . Impact . | . . . . . Kinetic . | . . . . . Secondary . | . . . . . Self-Inflicted Damage 1 | . 1 . . . Shots . | . . . . . Rammed 1 | . 1 . . . Targets Rammed 1 | . 1 . . . Kicked . | . . . . . Crushed . | . . . . . Highest Temperature 202 | 63 36 202 . 198 Average Temperature 61 | 27 14 88 . 86 Received Heat Transfer 54 | . 6 12 . 36 Siege Activations . | . . . . . Martial Activations . | . . . . . Shielding Activations . | . . . . . Robots Disrupted . | . . . . . Combat Hostiles . | . . . . . Robots Corrupted . | . . . . . Combat Hostiles . | . . . . . Parts Fried . | . . . . . Impact Corruptions . | . . . . . Robots Melted . | . . . . . Combat Hostiles . | . . . . . Parts Melted 2 | . 1 1 . . Heat Transferred 1234 | 222 272 407 . 333 Parts Sabotaged . | . . . . . Parts Stolen . | . . . . . Parts Stripped . | . . . . . Power Chain Reactions . | . . . . . Alert | -11 -10 -9 -9 -7 ------- Run | Yrd Mat Mat Min Zio Maximum Alert Level 1 | . 1 . . . Low Security (%) 93 | 100 89 100 100 . Level 1 6 | . 10 . . . Level 2 . | . . . . . Level 3 . | . . . . . Level 4 . | . . . . . Level 5 . | . . . . . High Security . | . . . . . Max Security . | . . . . . Peak Influence 216 | 15 216 169 63 . Initial 70 | . 3 70 63 . Average 95 | 2 99 122 63 . Influence Increases 597 | 20 363 214 . . Destroy 0b10 Robot/C 220 | . 80 140 . . Destroy 0b10 Robot/NC 70 | 20 35 15 . . Destroy Leader 36 | . 12 24 . . Successful Hack 44 | . 39 5 . . Disable Machine 105 | . 105 . . . Destroy Structure 92 | . 92 . . . Lose Combat Pursuer 30 | . . 30 . . Influence Decreases 597 | 15 200 218 101 63 Entered New Map 264 | . 2 98 101 63 Time Decay 333 | 15 198 120 . . Squads Dispatched 2 | . 1 1 . . Investigation 2 | . 1 1 . . Extermination . | . . . . . Reinforcement . | . . . . . Assault . | . . . . . Garrison . | . . . . . Intercept . | . . . . . Searches Triggered . | . . . . . Construction Impeded . | . . . . . Haulers Reinforced . | . . . . . Active Scanning Responses . | . . . . . Cargo Convoy Interrupts . | . . . . . Stealth | -11 -10 -9 -9 -7 --------- Run | Yrd Mat Mat Min Zio Distress Signals 1 | . 1 . . . Communications Jammed . | . . . . . Distress Signals . | . . . . . Times Spotted 36 | . 4 12 . 20 Peak Tracking Total 12 | . 3 3 . 12 Tactical Retreats 4 | . . 2 . 2 Traps | -11 -10 -9 -9 -7 ------- Run | Yrd Mat Mat Min Zio Traps Triggered . | . . . . . Indirectly . | . . . . . Trap Hack Attempts . | . . . . . Triggered . | . . . . . Disarmed . | . . . . . Reprogrammed . | . . . . . Reused . | . . . . . Traps Extracted . | . . . . . Installed . | . . . . . Triggered . | . . . . . Objects Rigged 6 | . 6 . . . Exploded 5 | . 5 . . . Machines | -11 -10 -9 -9 -7 ---------- Run | Yrd Mat Mat Min Zio Machines Disabled 7 | . 7 . . . Max in Single Turn 2 | . 2 . . . Machines Repaired . | . . . . . Machines Dismantled . | . . . . . Machines Sabotaged . | . . . . . Overloaded Fab Kills . | . . . . . Hacking | -11 -10 -9 -9 -7 --------- Run | Yrd Mat Mat Min Zio Machines Accessed 7 | . 5 2 . . Terminals 5 | . 4 1 . . Fabricators . | . . . . . Repair Stations . | . . . . . Recycling Units 1 | . 1 . . . Scanalyzers 1 | . . 1 . . Garrison Access . | . . . . . Total Hacks 20 | . 12 8 . . Successful 12 | . 7 5 . . Failed 8 | . 5 3 . . Catastrophic 2 | . 2 . . . Database Lockouts . | . . . . . Manual 16 | . 11 4 . 1 Terminals 15 | . 11 4 . . Fabricators . | . . . . . Repair Stations . | . . . . . Recycling Units 1 | . 1 . . . Scanalyzers 4 | . . 4 . . Garrison Access . | . . . . . Terminal Hacks 2 | . 2 . . . Part Schematic 1 | . 1 . . . Zone Layout 1 | . 1 . . . Fabricator Hacks . | . . . . . Repair Station Hacks . | . . . . . Recycling Unit Hacks 1 | . 1 . . . Report Inventory 1 | . 1 . . . Scanalyzer 4 | . . 4 . . Insert Component 2 | . . 2 . . Analyze 2 | . . 2 . . Garrison Access Hacks . | . . . . . Unauthorized Hacks 5 | . 4 1 . . Terminals 5 | . 4 1 . . Botnet 4 | . 3 1 . . Detonate 1 | . 1 . . . Fabricators . | . . . . . Repair Stations . | . . . . . Recycling Units . | . . . . . Scanalyzers . | . . . . . Garrison Access . | . . . . . Data Cores Recovered 1 | . . 1 . . Used . | . . . . . Hacking Detections 6 | . 4 2 . . Full Trace Events 3 | . 1 2 . . Feedback Events 1 | . . 1 . . Corruption 1 | . . 1 . . Feedback Blocked . | . . . . . Robot Schematics Acquired 3 | . . . . 3 Robots Built . | . . . . . Authchips . | . . . . . Time . | . . . . . Total Robot Build Rating . | . . . . . Part Schematics Acquired 17 | . 1 2 . 14 Parts Built . | . . . . . Authchips . | . . . . . Time . | . . . . . Total Part Build Rating . | . . . . . Parts Repaired . | . . . . . Time . | . . . . . Parts Recycled . | . . . . . Recycled Matter . | . . . . . Retrieved Matter . | . . . . . Retrieved Components . | . . . . . Parts Scanalyzed 2 | . . 2 . . Part Schematics Acquired 2 | . . 2 . . Parts Damaged . | . . . . . Bothacking | -11 -10 -9 -9 -7 ------------ Run | Yrd Mat Mat Min Zio Used RIF Installer . | . . . . . Robots Hacked . | . . . . . Non-combat . | . . . . . Combat . | . . . . . Robot Hacks Applied . | . . . . . Relay Couplers Released . | . . . . . Fabnet Peak Effective % . | . . . . . Robots Rewired . | . . . . . Allies Hacked . | . . . . . Hacks Repelled . | . . . . . Allies | -11 -10 -9 -9 -7 -------- Run | Yrd Mat Mat Min Zio Total Allies . | . . . . . Largest Group . | . . . . . Highest-Rated Group . | . . . . . Highest-Rated Ally . | . . . . . Total Orders . | . . . . . Ally Attacks . | . . . . . Total Damage . | . . . . . Kills . | . . . . . Allies Corrupted . | . . . . . Allies Melted . | . . . . . Intel | -11 -10 -9 -9 -7 ------- Run | Yrd Mat Mat Min Zio Active Infowar (turns) 662 | 9 506 147 . . Terrain 662 | 9 506 147 . . Robot Analysis Total . | . . . . . Derelict Logs Recovered 1 | . . . . 1 Drone Launches . | . . . . . Drone Recoveries . | . . . . . Exploration | -11 -10 -9 -9 -7 ------------- Run | Yrd Mat Mat Min Zio Turns Passed 1358 | 94 506 257 3 498 Spaces Moved 1169 | 60 368 233 4 504 Core 12 | 12 . . . . Treads . | . . . . . Legs . | . . . . . Wheels 1157 | 48 368 233 4 504 Hover . | . . . . . Flight . | . . . . . Fastest Speed 50 | 50 90 90 90 90 Average Speed 89 | 88 90 90 90 90 Slowest Speed 150 | 150 135 90 90 90 Overloaded Moves . | . . . . . Propulsion Burnouts . | . . . . . Robots Hopped . | . . . . . Potential Cave-ins . | . . . . . Cave-ins Triggered . | . . . . . Exploration Rate (%) 24 | 4 36 15 3 62 Regions Visited 4 Branch Regions 2 Pre-discovered Areas 2 | . . . . 2 Known Exits Taken . | . . . . . Unknown Exits Taken 4 | 1 1 1 1 . Scrap Searched 1 | . . . . 1 Spaces Dug . | . . . . . Terrain Destroyed 101 | . 97 . . 4 Melee . | . . . . . Projectile . | . . . . . AOE 101 | . 97 . . 4 Terrain Rammed . | . . . . . Walls Destroyed . | . . . . . Machines Disabled . | . . . . . Actions | -11 -10 -9 -9 -7 --------- Run | Yrd Mat Mat Min Zio Total 1386 | 80 521 257 3 525 Wait 130 | . 128 2 . . Move 1165 | 59 367 232 3 504 Hop . | . . . . . Pick Up 16 | 5 7 2 . 2 Fast Attach 6 | 5 . . . 1 Attach 4 | 2 . 2 . . Detach . | . . . . . Swap 13 | . 5 4 . 4 Drop 9 | . 3 2 . 4 Fire 42 | 9 10 13 . 10 Melee . | . . . . . Ram 1 | . 1 . . . Kick . | . . . . . Crush . | . . . . . Escape Stasis . | . . . . . Rewire . | . . . . . Trap . | . . . . . Miscellaneous . | . . . . . Route ------- -11/Scrapyard -10/Materials -9/Materials -9/Mines -7/Zion History --------- Turn | Location | Event 37 | -11/Scrapyard | Discovered new exit (range 16) 95 | -11/Scrapyard | Entered Materials 288 | -10/Materials | Discovered new exit (range 13) 335 | -10/Materials | Build established: Mutant 601 | -10/Materials | Entered another Materials area 601 | -9/Materials | Evolved 2 slots: Utility x1, Weapon x1 638 | -9/Materials | Discovered new exit (range 15) 858 | -9/Materials | Entered Mines 859 | -9/Mines | A Derelict revealed a hidden shortcut to a safe place 861 | -9/Mines | Entered Zion 897 | -7/Zion | System corruption cleaned by Quarantine Array 1036 | -7/Zion | Build established: Gunner 1178 | -7/Zion | Learned location of Armory (-4) 1277 | -7/Zion | Attacked by Zionites 1356 | -7/Zion | Core integrity fell below 50% 1359 | -7/Zion | Self-destructed Last Messages --------------- Twisted Machinery. 01343_ 6H-3ZP(z) heat spikes uncontrollably. 01343_ V7-808(l) destroyed. 01343_ 97-2T5(z) destroyed. 01343_ 2U-2JE(z) destroyed. 01343_ 6H-3ZP(z) overheating. 01350_ Grenade Launcher destroyed. 01350_ BO-87A(z) destroyed. 01351_ 6H-3ZP(z) overheating. 01353_ IL-JBU(z) destroyed. 01354_ I2-6UQ(z) pulls a Mak. Shrapnel Gun out of the Twisted Machinery. 01356_ PK-ESE(z) heat damages Mak. Leg. 01356_ 6H-3ZP(z) overheating. 01357_ PK-ESE(z) destroyed. 01358_ 6H-3ZP(z) heat short circuits Mak. Laser. 01358_ 6H-3ZP(z) pulls a Mak. Shrapnel Gun out of the Twisted Machinery. 01358_ 6H-3ZP(z) overheating. 01359_ Mak. Power Source destroyed. Map ----- +----------------------------------------------------+ | "" """ """#???????????##"""#"""#????# | | ##"" "" """"#???????????"#"####??????# | | # ###" """ """?????????????#??????????# | | ## " """"" ""#???????????????????????? | | ?## """#" ""#???????????????????????? | | ?# """"" ""#??????????????????????? | | ?## "#"#" ""#??????????????????????? | | #""" """"" ""??????????????????????? | | ##" """ "#??????????????????????? | | ?#" """??????????????????????? | | #""" """??????????????????????? | | #""" "#???????????????????????? | | """ "##??????????????????????? | | ?""" ""##?????????????????????? | | ?"#"""" """#?????????????????????? | | ??"""""" ""#??????????????????????? | | ???""""" ""##??????????????????????# | | ???? "" """ """"#???????????????????????# | | ???? """"" """"#???????????????????????# | | ???" """""" "####???????????????????????# | | ??? """""""" ""###????????????????????????# | | ??? """" "" z""#"#######?####?????######### | | ??? """" ""#""""""###""#?#####"""""""" | | ?????"""" z"""" "" """##"##"""""""""" | | ??????"""" z """ #"" "" | | ?????" """""" z @z%%= """"" " | | ?????? """""" = | | ?????? """ =%z %=%= | | ??????? """ *% * | | ????????"""" """""#""#"""z """""" "" "" | | ?????????""" """""""""""" "" """ | | ??????????"" "" "" | | ??????????? ? " "" " | | ???????????$ """"""""" "" | | ???????????"?? ? """"""""""[% ## ## "" | | ???????????????????"" ""#"""z # # " | | ??????????????????? """"" """ "" | | ??????????????????? """#" """ " "" | | ???????????????????? ???""""" """ " | | ??????????????????????????"" # # " | | ?????????????????????????##" ## ## " "" " | | ?????????????????????????""" """" "" | | ?????????????????????????##" ""###" """#""""# | | ??????????????????????????""" ""??#""""""""##""## | | ??????????????????????????##""""???##"""#"""#####? | | ????????????????????????????#"#"????####"###?????? | | ?????????????????????????????????????????????????? | | ?????????????????????????????????????????????????? | | ?????????????????????????????????????????????????? | | ?????????????????????????????????????????????????? | +----------------------------------------------------+ Best States ------------- Heat Dissipation 38 Coolant Potential 65 Energy Generation 15 Energy Capacity 170 Matter Stores 276 Matter Capacity 300 Sight Range 16 Terrain Scan Range 16 Terrain Scan Density 10 Evasion (%) 42 Offensive Hacking 10 Item Schematics ----------------- Med. Laser | -10/Materials | Hacked Imp. Terrain Scanner | -9/Materials | Scanalyzed Hvy. Assault Rifle | -9/Materials | Scanalyzed Dynamic Insulation System | -7/Zion | Archive Imp. Coolant Injector | -7/Zion | Archive Lgt. Angular Momentum Engine | -7/Zion | Archive Component Analysis Suite | -7/Zion | Archive EM Shield | -7/Zion | Archive Imp. Actuator Array | -7/Zion | Archive Weapon Cycler | -7/Zion | Archive Thermic Laser | -7/Zion | Archive Arm. Huge Wheel | -7/Zion | Archive Imp. Shock Absorption System | -7/Zion | Archive Lrn. Missile Launcher | -7/Zion | Archive EM Disruption Field | -7/Zion | Archive Plasma Cannon | -7/Zion | Archive Coil Gun | -7/Zion | Archive Robot Schematics ------------------ T-07 Excavator | -7/Zion | Archive S-27 Virus | -7/Zion | Archive G-47 Trooper | -7/Zion | Archive Fabricated ------------ Nothing Repaired ---------- Nothing Alien Tech Used ----------------- None Achievements -------------- None Challenges ------------ None Game ------ Seed AutogunStealthStripper Manual? 0 Play Time 00:13:16 Cumulative 10.4 hours Start 2025.05.07 @ 16:18:41 End 2025.05.07 @ 22:45:22 Sessions 3 Manual Loads 0 Difficulty Rogue Special Mode None Game No. 43 Rogue 43 Adventurer 0 Explorer 0 Win Type - Total 0 Types 0/0/0/0/0/0/0/0/0/0 Lore% 5 Gallery% 14 Achievement% 14 Wizard Run 0 Options --------- Layout 1 ASCII 0 Keyboard 1 Movement Numpad Keybinds 0 Fullscreen 1 Font 24/Smallcaps Map View 50x35 Zoom Use 0% Tactical HUD 1 Map Filters NONE Filters NONE Steam 1 RUN: 69c8371e-3e53-449e-979b-9f6e959ebcc2